bitfinex/quotes_SOLUSD_20250901
["timestamp","ask_amount","ask_price","bid_price","bid_amount"]
[1756709138915,8.67597093,199.53,199.52,38.83]
[1756709139090,8.67597093,199.53,199.52,0.03]
[1756709139293,8.67597093,199.53,199.52,38.83]
[1756709139598,22.27156494,199.53,199.52,38.83]
[1756709142086,13.59559401,199.52,199.48,0.03]
[1756709142286,3.66419326,199.49,199.48,0.03]
[1756709143686,8.67697585,199.49,199.48,0.03]
[1756709144810,3.66419326,199.49,199.48,0.03]
[1756709145505,15.0644,199.55,199.48,0.03]
[1756709145709,3.66419326,199.53,199.49,5.01278259]
[1756709146206,3.66419326,199.51,199.5,38.8]
[1756709147384,3.66419326,199.52,199.5,38.8]
[1756709147612,3.66419326,199.53,199.5,38.8]
[1756709147790,3.66419326,199.53,199.5,43.81249061]
[1756709147991,3.66419326,199.53,199.5,38.8]
[1756709148605,3.66419326,199.53,199.5,154.8]
[1756709148810,3.66419326,199.52,199.5,154.8]
[1756709149014,3.66419326,199.51,199.5,116.0]
[1756709149209,3.66419326,199.51,199.5,154.8]
[1756709149885,3.66419326,199.51,199.5,38.8]
[1756709150583,3.66419326,199.52,199.5,38.8]
[1756709151403,3.66419326,199.52,199.5,43.81252903]
[1756709151611,3.66419326,199.53,199.5,43.84252903]
[1756709151815,3.66419326,199.54,199.5,43.84252903]
[1756709152886,3.66419326,199.54,199.5,159.84252903]
[1756709153517,3.66419326,199.53,199.5,159.84252903]
[1756709154212,3.66419326,199.52,199.5,159.84252903]
[1756709154397,3.66419326,199.53,199.5,154.83]
[1756709154595,3.66419326,199.53,199.51,38.8]
[1756709154800,3.66419326,199.52,199.51,38.8]
[1756709162121,8.67622212,199.52,199.5,0.03]
[1756709162315,3.66419326,199.51,199.5,38.83]
[1756709162932,8.67647334,199.51,199.5,38.83]
[1756709163300,3.66419326,199.51,199.5,38.83]
[1756709164628,8.67647334,199.51,199.5,38.83]
[1756709166104,3.66419326,199.51,199.5,38.83]
[1756709166303,8.67647334,199.51,199.5,0.03]
[1756709166519,8.67647334,199.51,199.5,38.83]
[1756709166825,5.01228008,199.51,199.5,38.83]
[1756709167035,8.67647334,199.51,199.5,0.03]
[1756709167216,8.67647334,199.51,199.5,38.83]
[1756709168313,8.67647334,199.51,199.5,0.03]
[1756709168613,12.3406666,199.51,199.5,0.03]
[1756709169417,25.93626061,199.51,199.5,0.03]
[1756709169818,5.01228008,199.51,199.5,0.03]
[1756709170032,8.67647334,199.51,199.5,0.03]
[1756709170228,3.66419326,199.51,199.5,0.03]
[1756709170619,3.66419326,199.52,199.5,0.03]
[1756709171818,5.01154993,199.54,199.5,0.03]
[1756709171819,3.66419326,199.51,199.5,0.03]
[1756709173329,26.0,199.53,199.5,0.03]
[1756709173916,3.66419326,199.52,199.5,0.03]
[1756709174116,3.66419326,199.51,199.5,0.03]
[1756709174320,3.66419326,199.51,199.5,38.83]
[1756709174525,3.66419326,199.52,199.5,38.83]
[1756709174845,3.66419326,199.51,199.5,38.83]
[1756709175028,3.66419326,199.52,199.5,38.83]
[1756709179339,0.06,199.54,199.5,38.83]
[1756709179340,3.72419326,199.54,199.5,43.8425098]
[1756709179654,0.06,199.54,199.51,3.66419326]
[1756709180351,0.06,199.54,199.5,43.8425098]
[1756709180547,3.72419326,199.54,199.51,38.8]
[1756709180734,3.66419326,199.53,199.51,38.8]
[1756709181753,3.66419326,199.52,199.5,0.03]
[1756709182127,3.66419326,199.52,199.51,38.8]
[1756709182645,3.72419326,199.54,199.51,38.8]
[1756709183032,3.66419326,199.53,199.51,38.8]
[1756709183449,0.06,199.54,199.51,38.8]
[1756709183942,3.72419326,199.54,199.51,38.8]
[1756709185629,3.66419326,199.53,199.51,38.8]
[1756709186558,3.66419326,199.52,199.51,38.8]
[1756709186930,0.06,199.54,199.51,38.8]
[1756709187142,3.66419326,199.52,199.51,38.8]
[1756709187433,3.66419326,199.53,199.51,38.8]
[1756709191327,3.72419326,199.54,199.51,38.8]
[1756709191526,3.72419326,199.54,199.51,43.81226142]
[1756709191756,0.06,199.53,199.51,43.81226142]
[1756709193047,3.72419326,199.53,199.51,43.81226142]
[1756709193965,3.72419326,199.53,199.51,38.8]
[1756709195052,3.72419326,199.53,199.5,116.03]
[1756709195256,3.72419326,199.53,199.51,38.8]
[1756709196558,3.72419326,199.53,199.52,38.8]
[1756709197951,3.72419326,199.53,199.5,0.03]
[1756709198259,3.66419326,199.52,199.51,38.8]
[1756709203146,3.66419326,199.52,199.51,38.78]
[1756709207379,8.67622212,199.52,199.5,0.03]
[1756709207577,33.32838652,199.51,199.5,0.03]
[1756709207874,29.66419326,199.51,199.5,0.03]
[1756709208047,34.67647334,199.51,199.5,0.03]
[1756709209870,51.93626061,199.51,199.5,0.03]
[1756709210247,51.99626061,199.51,199.5,0.03]
[1756709211879,25.99626061,199.51,199.5,0.03]
[1756709213589,5.01278259,199.49,199.48,0.03]
[1756709213770,8.67697585,199.49,199.48,0.03]
[1756709215272,26.20467951,199.49,199.48,0.03]
[1756709216681,22.27256986,199.49,199.48,0.03]
[1756709218980,24.89131638,199.49,199.48,0.03]
[1756709219764,39.59559401,199.47,199.46,0.03]
[1756709219960,43.25978727,199.47,199.46,0.03]
[1756709221066,45.26918127,199.47,199.46,0.03]
[1756709221669,50.28246647,199.47,199.46,0.03]
[1756709222683,50.28246647,199.47,199.44,0.03]
[1756709222886,17.25978727,199.45,199.44,0.03]
[1756709223112,17.25978727,199.45,199.38,0.03]
[1756709223384,43.25978727,199.42,199.38,0.03]
[1756709223783,48.27432944,199.42,199.38,0.03]
[1756709224370,63.34856944,199.42,199.38,0.03]
[1756709224776,44.73843326,199.42,199.38,0.03]
[1756709225086,29.66419326,199.42,199.38,0.03]
[1756709225394,3.66419326,199.42,199.38,0.03]
[1756709226281,15.071969,199.43,199.38,3.69419326]
[1756709226587,3.66419326,199.44,199.39,3.66419326]
[1756709226963,3.66419326,199.44,199.4,0.14216157]
[1756709227167,15.06894,199.47,199.4,0.14216157]
[1756709227383,3.66419326,199.44,199.4,0.14216157]
[1756709227778,3.66419326,199.44,199.4,5.15701391]
[1756709228385,3.72419326,199.44,199.4,5.15701391]
[1756709228997,3.66419326,199.43,199.4,5.01485234]
[1756709229893,3.66419326,199.43,199.39,5.18745822]
[1756709230202,0.06,199.44,199.42,3.80635483]
[1756709230369,0.06,199.44,199.43,42.60635483]
[1756709230971,0.06,199.44,199.43,38.94216157]
[1756709231176,0.06,199.44,199.43,42.60635483]
[1756709231373,0.06,199.44,199.43,82.20194884]
[1756709231577,0.02066724,199.44,199.43,82.70337791]
[1756709231786,0.06,199.48,199.46,18.60913055]
[1756709232004,0.06,199.48,199.47,4.30768335]
[1756709232504,0.06,199.48,199.47,6.31576535]
[1756709233381,0.06,199.48,199.47,5.81443683]
[1756709233800,0.06,199.48,199.47,6.31576535]
[1756709234203,0.06,199.48,199.47,11.32905055]
[1756709234806,0.06,199.48,199.47,127.32905055]
[1756709234998,0.06,199.48,199.47,123.16352877]
[1756709235206,0.06,199.48,199.47,159.7932852]
[1756709235392,0.06,199.48,199.47,159.93544677]
[1756709236795,0.06,199.48,199.47,163.59964003]
[1756709238385,0.06,199.48,199.47,159.93544677]
[1756709239888,0.06,199.48,199.47,43.93544677]
[1756709240593,0.06,199.48,199.47,5.15544677]
[1756709240790,0.06,199.48,199.47,38.78]
[1756709242206,0.06,199.48,199.47,43.7932852]
[1756709242414,0.06,199.48,199.47,38.78]
[1756709243719,0.06,199.48,199.47,43.7932852]
[1756709244615,0.06,199.48,199.47,43.93544677]
[1756709244994,0.06,199.48,199.47,47.59964003]
[1756709245200,0.06,199.51,199.5,26.0]
[1756709245407,0.06,199.51,199.5,68.58635483]
[1756709245820,0.06,199.51,199.5,75.60666615]
[1756709247190,0.06,199.51,199.5,71.94247289]
[1756709247390,0.06,199.51,199.5,75.60666615]
[1756709248314,0.06,199.51,199.5,7.16247289]
[1756709248499,0.06,199.51,199.5,43.93469289]
[1756709248704,0.06,199.51,199.5,43.79253132]
[1756709249117,0.06,199.51,199.5,159.93469289]
[1756709250819,0.06,199.51,199.5,163.59888615]
[1756709251609,0.06,199.51,199.5,124.81888615]
[1756709251823,0.06,199.51,199.5,159.93469289]
[1756709252001,0.06,199.51,199.5,43.93469289]
[1756709252920,0.06,199.51,199.5,47.59888615]
[1756709254122,0.06,199.51,199.5,43.93469289]
[1756709254924,0.06,199.51,199.5,47.59888615]
[1756709255100,0.06,199.51,199.5,163.59888615]
[1756709255722,0.06,199.51,199.5,165.60686815]
[1756709258221,0.06,199.51,199.5,123.16267489]
[1756709258397,0.06,199.51,199.5,161.92267489]
[1756709259514,0.06,199.51,199.5,165.58686815]
[1756709261199,0.06,199.51,199.5,161.92267489]
[1756709261404,0.06,199.51,199.5,159.91469289]
[1756709261604,3.72419326,199.51,199.5,116.0]
[1756709261804,3.72419326,199.51,199.49,2.007981]
[1756709262007,3.66419326,199.5,199.4,3.66419326]
[1756709262208,3.66419326,199.46,199.43,0.14216157]
[1756709262424,3.66419326,199.46,199.44,38.76]
[1756709262936,3.66419326,199.45,199.41,3.754193]
[1756709263111,3.66419326,199.45,199.42,43.77454217]
[1756709264832,3.66419326,199.45,199.42,159.77454217]
[1756709265042,3.66419326,199.45,199.42,154.76]
[1756709265343,3.66419326,199.44,199.43,38.76]
[1756709265631,10.02588729,199.48,199.43,38.76]
[1756709265931,3.66419326,199.47,199.44,0.03]
[1756709266104,0.06,199.51,199.45,38.76]
[1756709266305,0.06,199.51,199.46,0.14216157]
[1756709266524,8.73704026,199.51,199.47,38.78]
[1756709266728,3.72419326,199.51,199.48,5.01303388]
[1756709266946,3.72419326,199.51,199.49,38.78]
[1756709267132,0.06,199.51,199.49,38.78]
[1756709267941,0.06,199.51,199.49,43.79276791]
[1756709268539,0.06,199.51,199.5,3.80635483]
[1756709268929,0.06,199.51,199.5,7.53054783]
[1756709269524,0.06,199.51,199.5,3.724193]
[1756709269824,3.72419326,199.51,199.5,38.8]
[1756709270836,0.06,199.51,199.5,38.8]
[1756709271339,0.06,199.51,199.5,43.81253132]
[1756709271533,0.06,199.51,199.5,159.81253132]
[1756709272139,3.72419326,199.51,199.5,154.8]
[1756709272338,0.06,199.51,199.5,38.8]
[1756709272841,0.06,199.51,199.5,43.81253132]
[1756709273438,3.72419326,199.51,199.5,38.8]
[1756709273746,0.06,199.51,199.5,38.8]
[1756709275236,0.06,199.51,199.5,154.8]
[1756709276843,3.72419326,199.51,199.5,154.8]
[1756709278239,3.72419326,199.51,199.5,38.8]
[1756709280255,3.72419326,199.51,199.47,5.15544677]
[1756709280446,3.66419326,199.5,199.48,38.76]
[1756709280841,0.06,199.51,199.44,0.03]
[1756709280842,3.66419326,199.49,199.44,0.03]
[1756709281162,3.66419326,199.46,199.45,38.76]
[1756709281338,3.66419326,199.48,199.45,38.76]
[1756709282142,3.66419326,199.46,199.45,38.76]
[1756709282440,3.66419326,199.46,199.45,38.78]
[1756709282841,0.06,199.51,199.45,38.78]
[1756709283051,3.66419326,199.5,199.45,38.78]
[1756709283436,3.66419326,199.5,199.48,0.03]
[1756709283737,3.66419326,199.5,199.49,38.8]
[1756709283932,0.06,199.51,199.49,38.8]
[1756709284344,0.06,199.51,199.49,43.8125746]
[1756709285141,0.06,199.51,199.5,0.14216157]
[1756709285462,0.06,199.51,199.5,119.80635483]
[1756709285846,0.06,199.51,199.5,116.14216157]
[1756709286549,0.06,199.51,199.5,116.0]
[1756709286748,3.72419326,199.51,199.5,38.82]
[1756709286950,0.06,199.51,199.5,43.83253132]
[1756709287276,0.06,199.51,199.5,43.97469289]
[1756709287776,0.06,199.51,199.5,47.63888615]
[1756709289663,0.06,199.51,199.5,177.23448016]
[1756709290184,1e-08,199.51,199.5,206.89867342]
[1756709290356,1e-08,199.53,199.51,13.73775558]
[1756709290680,1e-08,199.53,199.52,82.74315172]
[1756709292063,1e-08,199.53,199.52,87.75518058]
[1756709293572,1e-08,199.53,199.52,61.75518058]
[1756709293779,1e-08,199.53,199.52,31.01202886]
[1756709294074,1e-08,199.53,199.52,43.97419043]
[1756709294262,1e-08,199.53,199.52,47.63838369]
[1756709295553,1e-08,199.53,199.52,47.49622212]
[1756709295882,1e-08,199.53,199.52,43.97419043]
[1756709296376,1e-08,199.53,199.52,159.97419043]
[1756709296559,1e-08,199.53,199.52,163.63838369]
[1756709298875,1e-08,199.53,199.52,116.14216157]
[1756709299081,1e-08,199.53,199.52,154.96216157]
[1756709300676,1e-08,199.53,199.52,159.97419043]
[1756709300877,1e-08,199.53,199.52,163.63838369]
[1756709301760,0.06,199.54,199.52,163.63838369]
[1756709301957,0.06,199.54,199.53,3.66419326]
[1756709302354,0.06,199.54,199.53,0.14216157]
[1756709302560,0.06,199.54,199.53,38.96216157]
[1756709303766,0.06,199.54,199.53,43.97393924]
[1756709304184,0.06,199.54,199.53,38.96216157]
[1756709304479,0.06,199.54,199.53,38.82]
[1756709308487,0.06,199.54,199.53,38.78]
[1756709308488,3.72419326,199.54,199.53,38.78]
[1756709308703,3.72419326,199.54,199.52,0.03]
[1756709309003,3.66419326,199.53,199.52,0.03]
[1756709309174,3.66419326,199.53,199.52,38.85]
[1756709310168,0.06,199.54,199.52,38.85]
[1756709310394,3.66419326,199.53,199.52,38.85]
[1756709312771,8.67597093,199.53,199.52,38.85]
[1756709313667,3.66419326,199.53,199.52,38.85]
[1756709313969,0.06,199.54,199.52,38.85]
[1756709314381,0.06,199.54,199.52,43.8620162]
[1756709314696,0.06,199.54,199.53,5.15393924]
[1756709315681,0.06,199.54,199.53,8.8181325]
[1756709315878,0.01998428,199.54,199.53,5.15393924]
[1756709316191,0.01998428,199.54,199.53,8.8181325]
[1756709316394,0.01998428,199.54,199.53,5.15393924]
[1756709316695,0.01998428,199.54,199.53,44.01393924]
[1756709318903,0.01998428,199.54,199.53,160.01393924]
[1756709319094,0.01998428,199.54,199.53,154.86]
[1756709320193,0.01998428,199.54,199.53,159.87177767]
[1756709320989,0.01998428,199.54,199.53,163.6781325]
[1756709321784,0.01998428,199.54,199.53,44.01393924]
[1756709321978,0.01998428,199.54,199.53,5.15393924]
[1756709322180,0.01998428,199.54,199.53,43.99393924]
[1756709322713,0.01998428,199.54,199.53,87.25372651]
[1756709323208,0.01998428,199.54,199.53,48.41372651]
[1756709323399,0.01998428,199.54,199.53,87.27372651]
[1756709323703,0.01998428,199.54,199.53,89.28090251]
[1756709324478,0.01998428,199.54,199.53,89.30090251]
[1756709324678,0.01998428,199.54,199.53,205.30090251]
[1756709325517,0.01998428,199.54,199.53,166.42090251]
[1756709325688,0.01998428,199.54,199.53,189.6781325]
[1756709326085,0.01998428,199.54,199.53,163.55597093]
[1756709326484,0.01998428,199.54,199.53,163.6981325]
[1756709327091,0.01998428,199.54,199.53,124.8181325]
[1756709327300,0.06,199.55,199.54,0.14216157]
[1756709328421,0.06,199.55,199.54,0.64331422]
[1756709328626,0.06,199.55,199.54,4.30750748]
[1756709328923,0.06,199.55,199.54,14.44292593]
[1756709329804,1e-08,199.55,199.54,28.03851994]
[1756709330505,0.01684188,199.56,199.55,39.73775558]
[1756709330709,0.01684188,199.56,199.55,87.6332242]
[1756709332303,0.01684188,199.56,199.55,74.03763019]
[1756709332786,0.01684188,199.56,199.55,34.81763019]
[1756709332986,0.01684188,199.56,199.55,44.37343693]
[1756709333209,0.01684188,199.56,199.55,160.37343693]
[1756709333507,0.01684188,199.56,199.55,164.03763019]
[1756709333716,0.01684188,199.56,199.55,177.6332242]
[1756709334012,0.01684188,199.56,199.55,179.6401982]
[1756709334417,0.01684188,199.56,199.55,164.03763019]
[1756709334598,0.01684188,199.56,199.55,177.6332242]
[1756709336304,0.06,199.58,199.57,26.0]
[1756709336506,0.06,199.59,199.58,13.73775558]
[1756709336909,0.06,199.59,199.58,15.74452858]
[1756709337103,0.05278304,199.61,199.58,15.74452858]
[1756709337310,0.05278304,199.61,199.6,22.41196888]
[1756709338324,1e-08,199.61,199.6,26.07616214]
[1756709338522,2.61757009,199.74,199.64,0.14216157]
[1756709338821,3.66419326,199.73,199.67,3.66419326]
[1756709339016,0.1,199.75,199.68,39.3]
[1756709339329,0.1,199.75,199.68,160.30794383]
[1756709339618,3.66419326,199.73,199.68,160.30794383]
[1756709339809,3.66419326,199.72,199.68,160.30794383]
[1756709340223,5.10629665,199.75,199.68,160.30794383]
[1756709340400,3.66419326,199.72,199.68,160.30794383]
[1756709340923,3.66419326,199.71,199.68,160.30794383]
[1756709341420,3.66419326,199.71,199.68,116.0]
[1756709341741,3.66419326,199.69,199.58,5.01052209]
[1756709341924,3.66419326,199.61,199.59,39.3]
[1756709342221,3.66419326,199.62,199.59,39.3]
[1756709343121,3.66419326,199.63,199.6,5.01002004]
[1756709343323,3.66419326,199.62,199.61,39.3]
[1756709343626,31.00845729,199.67,199.61,39.3]
[1756709343811,3.66419326,199.62,199.61,39.3]
[1756709344001,5.86193176,199.62,199.61,39.3]
[1756709347121,5.86193176,199.62,199.61,39.24]
[1756709347320,5.86193176,199.62,199.57,36.1]
[1756709347625,5.86193176,199.58,199.57,36.1]
[1756709348005,5.86193176,199.58,199.54,0.03]
[1756709348212,13.59559401,199.61,199.55,39.24]
[1756709348524,5.86193176,199.56,199.55,39.24]
[1756709349738,10.87295601,199.56,199.54,0.03]
[1756709349912,5.86193176,199.55,199.54,0.03]
[1756709350099,5.86193176,199.55,199.54,39.27]
[1756709350520,10.87320712,199.55,199.54,39.27]
[1756709352125,5.86193176,199.55,199.54,39.27]
[1756709352908,5.86193176,199.56,199.54,39.27]
[1756709353516,5.86193176,199.55,199.54,39.27]
[1756709354630,10.87320712,199.55,199.54,39.25]
[1756709358915,24.46880113,199.55,199.54,0.03]
[1756709359334,18.60686937,199.55,199.54,0.03]
[1756709359547,5.86193176,199.55,199.54,0.03]
[1756709359922,5.86193176,199.56,199.54,0.03]
[1756709362843,5.86193176,199.55,199.54,0.03]
[1756709363634,10.87320712,199.55,199.54,0.03]
[1756709363833,24.46880113,199.55,199.54,0.03]
[1756709366923,24.6109627,199.55,199.52,0.03]
[1756709367123,5.86193176,199.53,199.52,0.03]
[1756709367638,10.87370943,199.53,199.52,0.03]
[1756709369343,12.88269943,199.53,199.52,0.03]
[1756709370045,15.50183721,199.53,199.52,0.03]
[1756709370346,13.49284721,199.53,199.52,0.03]
[1756709371258,27.23060279,199.53,199.52,1e-08]
[1756709371552,39.59559401,199.51,199.5,0.03]
[1756709371730,45.45752577,199.51,199.5,0.03]
[1756709371934,50.46980585,199.51,199.5,0.03]
[1756709375023,2.009192,199.52,199.5,0.03]
[1756709375221,40.64431664,199.54,199.5,44.99193176]
[1756709375947,46.5062484,199.54,199.5,39.13]
[1756709376426,5.86193176,199.53,199.5,39.13]
[1756709377938,46.5062484,199.54,199.5,39.13]
[1756709378139,46.5062484,199.54,199.5,155.13]
[1756709378343,5.86193176,199.53,199.5,155.13]
[1756709379333,40.64431664,199.54,199.5,155.13]
[1756709379547,46.5062484,199.54,199.5,155.13]
[1756709379955,46.5062484,199.54,199.5,160.14244604]
[1756709380259,46.5062484,199.54,199.5,44.14244604]
[1756709380766,46.5062484,199.54,199.5,39.13]
[1756709382556,46.5062484,199.54,199.5,44.1424682]
[1756709382743,46.5062484,199.54,199.5,39.13]
[1756709384458,5.86193176,199.53,199.5,39.13]
[1756709384660,5.86193176,199.51,199.5,0.03]
[1756709385970,3.66907781,199.51,199.5,0.03]
[1756709386675,8.68135789,199.51,199.5,0.03]
[1756709387760,22.2769519,199.51,199.5,0.03]
[1756709387976,24.4794092,199.51,199.5,0.03]
[1756709388368,50.4794092,199.51,199.5,0.03]
[1756709390056,50.4794092,199.51,199.48,1e-08]
[1756709390255,50.4794092,199.51,199.46,0.03]
[1756709390256,0.14216157,199.47,199.46,0.03]
[1756709390480,39.59559401,199.45,199.44,0.03]
[1756709390682,45.46712912,199.45,199.44,0.03]
[1756709390973,48.08690994,199.45,199.44,0.03]
[1756709391856,54.10060662,199.45,199.44,0.03]
[1756709392054,59.11439453,199.45,199.44,0.03]
[1756709395288,55.25275842,199.45,199.44,0.03]
[1756709396093,49.23906174,199.45,199.44,0.03]
[1756709396261,27.10069785,199.45,199.44,0.03]
[1756709396462,33.11439453,199.45,199.44,0.03]
[1756709396664,45.64886432,199.45,199.41,0.03]
[1756709396872,19.46712912,199.42,199.41,0.03]
[1756709398376,24.48167129,199.42,199.41,0.03]
[1756709400174,50.48167129,199.42,199.41,0.03]
[1756709402293,24.48167129,199.42,199.41,0.03]
[1756709403191,10.88607728,199.42,199.41,0.03]
[1756709403393,36.88607728,199.42,199.41,0.03]
[1756709404398,24.48167129,199.42,199.41,0.03]
[1756709405699,28.54845419,199.42,199.41,0.03]
[1756709406585,31.16828496,199.42,199.41,0.03]
[1756709406768,18.61063914,199.4,199.38,0.03]
[1756709406967,24.48217425,199.4,199.38,0.03]
[1756709409402,24.48217425,199.4,199.36,1e-08]
[1756709409403,39.59559401,199.37,199.36,1e-08]
[1756709409571,0.14216157,199.36,199.33,0.03]
[1756709409774,25.33866423,199.34,199.33,0.03]
[1756709410114,17.27255411,199.34,199.33,0.03]
[1756709410288,13.59559401,199.33,199.32,0.2]
[1756709410489,17.27255411,199.33,199.32,0.2]
[1756709411387,22.28936041,199.33,199.32,0.2]
[1756709411793,26.0,199.33,199.32,0.2]
[1756709411990,29.6769601,199.33,199.32,0.2]
[1756709412376,3.6769601,199.33,199.32,0.2]
[1756709413276,5.01655463,199.34,199.32,0.2]
[1756709413507,3.6769601,199.33,199.32,0.2]
[1756709413877,17.27255411,199.33,199.32,0.2]
[1756709415499,22.28936041,199.33,199.32,0.2]
[1756709415808,48.28936041,199.33,199.32,0.2]
[1756709416009,24.49510301,199.33,199.32,0.2]
[1756709416215,30.37780571,199.33,199.32,1e-08]
[1756709416376,30.37780571,199.33,199.17,37.04]
[1756709416377,26.0,199.25,199.17,37.04]
[1756709416585,5.8827027,199.19,199.17,37.04]
[1756709416796,5.8827027,199.2,199.17,37.04]
[1756709416982,5.8827027,199.22,199.17,37.04]
[1756709417202,19.57023705,199.33,199.18,5.8827027]
[1756709417403,26.0,199.28,199.21,10.90253102]
[1756709417701,5.8827027,199.26,199.21,10.90253102]
[1756709418109,5.01730971,199.31,199.22,5.8827027]
[1756709418292,5.8827027,199.29,199.23,5.8827027]
[1756709418494,5.8827027,199.28,199.23,5.8827027]
[1756709418696,5.8827027,199.27,199.22,6.02486427]
[1756709419419,5.8827027,199.27,199.23,5.01932439]
[1756709419627,5.8827027,199.26,199.22,116.14216157]
[1756709419826,5.8827027,199.25,199.22,116.0]
[1756709420133,5.8827027,199.25,199.23,39.28]
[1756709420995,5.8827027,199.24,199.23,39.28]
[1756709422011,5.8827027,199.25,199.23,39.28]
[1756709422417,5.8827027,199.24,199.18,0.14216157]
[1756709422623,5.01832704,199.27,199.13,13.59559401]
[1756709422624,13.59559401,199.26,199.21,39.28]
[1756709423511,26.0,199.27,199.21,39.28]
[1756709423712,5.8827027,199.22,199.21,39.28]
[1756709424214,31.01836674,199.27,199.21,39.28]
[1756709424419,26.0,199.27,199.21,44.29975416]
[1756709424632,5.8827027,199.3,199.24,5.8827027]
[1756709425130,5.8827027,199.31,199.25,5.8827027]
[1756709425524,5.8827027,199.32,199.27,5.01831685]
[1756709425847,2.62126846,199.35,199.28,39.3]
[1756709426138,5.8827027,199.34,199.28,45.1827027]
[1756709427011,5.8827027,199.34,199.29,5.01781323]
[1756709428324,26.0,199.38,199.29,5.01781323]
[1756709428528,2.62096811,199.39,199.29,10.90051593]
[1756709428729,5.8827027,199.33,199.29,121.01781323]
[1756709429231,5.8827027,199.34,199.29,126.90051593]
[1756709430039,5.9427027,199.35,199.29,126.90051593]
[1756709430234,0.06,199.35,199.3,5.8827027]
[1756709430415,0.06,199.35,199.31,5.01730971]
[1756709430734,0.06,199.35,199.31,10.90001241]
[1756709430926,0.06,199.35,199.31,5.01730971]
[1756709431238,0.06,199.35,199.31,10.90001241]
[1756709431822,5.9427027,199.35,199.31,5.01730971]
[1756709432031,0.06,199.35,199.31,10.90001241]
[1756709433741,0.06,199.35,199.31,5.01730971]
[1756709433925,0.06,199.35,199.31,10.90001241]
[1756709434521,0.06,199.35,199.33,5.8827027]
[1756709434818,0.06,199.35,199.34,39.24]
[1756709435740,0.06,199.35,199.34,50.13925733]
[1756709435941,0.06,199.35,199.34,44.25655463]
[1756709436143,0.06,199.35,199.34,47.92839764]
[1756709438442,0.06,199.35,199.34,44.25655463]
[1756709438630,0.06,199.35,199.34,47.92839764]
[1756709438941,0.06,199.35,199.34,48.07055921]
[1756709440245,0.06,199.35,199.34,44.3987162]
[1756709440546,3.73184301,199.35,199.31,0.14216157]
[1756709440714,3.67184301,199.34,199.3,5.01756146]
[1756709440918,3.67184301,199.33,199.31,39.2]
[1756709441348,0.06,199.35,199.31,39.2]
[1756709441643,3.67184301,199.34,199.31,39.2]
[1756709441830,3.67184301,199.33,199.31,39.2]
[1756709442032,3.67184301,199.34,199.31,39.2]
[1756709442247,3.67184301,199.34,199.31,44.21711447]
[1756709442641,3.67184301,199.33,199.31,44.21711447]
[1756709445129,3.67184301,199.34,199.31,44.21711447]
[1756709445524,0.06,199.35,199.31,44.21711447]
[1756709445741,0.06,199.35,199.31,47.88895748]
[1756709446251,0.06,199.35,199.32,3.67184301]
[1756709446629,0.06,199.34,199.32,3.67184301]
[1756709447051,0.06,199.34,199.33,5.0168063]
[1756709447556,0.06,199.34,199.33,44.1968063]
[1756709447849,3.73184301,199.34,199.33,39.16]
[1756709448759,3.73184301,199.34,199.29,0.03]
[1756709449050,3.67184301,199.31,199.3,39.2]
[1756709450353,0.06,199.34,199.3,44.21746205]
[1756709450845,3.67184301,199.32,199.3,44.21746205]
[1756709451654,3.67184301,199.31,199.3,39.2]
[1756709452432,5.0765739,199.34,199.3,39.2]
[1756709452629,3.67184301,199.32,199.3,39.2]
[1756709454334,3.67184301,199.31,199.29,0.03]
[1756709454532,3.67184301,199.3,199.29,0.03]
[1756709454739,3.67184301,199.3,199.29,39.23]
[1756709456740,3.67184301,199.3,199.29,0.03]
[1756709457248,0.06,199.34,199.29,39.23]